bitfinex/quotes_BTCUSD_20240821
["timestamp","ask_amount","ask_price","bid_price","bid_amount"]
[1724223444438,0.91457561,59726.0,59725.0,0.0069042]
[1724223451206,0.91457561,59726.0,59725.0,0.00710567]
[1724223454369,0.79807561,59726.0,59725.0,0.00710567]
[1724223454572,0.20687561,59726.0,59725.0,0.20090567]
[1724223454771,0.20687561,59726.0,59725.0,0.73140567]
[1724223454977,0.11645698,59726.0,59725.0,0.61490567]
[1724223455966,0.11645698,59726.0,59725.0,0.60990567]
[1724223456172,0.11645698,59726.0,59725.0,0.62090567]
[1724223456980,0.11645698,59726.0,59725.0,0.61990567]
[1724223457183,0.11745698,59726.0,59725.0,0.62690567]
[1724223464420,0.11745698,59726.0,59725.0,0.74340567]
[1724223464607,0.001822,59726.0,59725.0,1.2151918]
[1724223464802,0.001822,59726.0,59725.0,1.11488838]
[1724223465229,0.001822,59726.0,59725.0,1.24010814]
[1724223465638,0.000822,59726.0,59725.0,1.22210814]
[1724223465839,0.000822,59726.0,59725.0,1.22910814]
[1724223465840,0.001822,59726.0,59725.0,1.22910814]
[1724223466018,0.001822,59726.0,59725.0,1.24010814]
[1724223466260,0.001822,59726.0,59725.0,1.11487716]
[1724223466484,0.001822,59726.0,59725.0,1.10387716]
[1724223466698,0.001822,59726.0,59725.0,1.11787716]
[1724223467123,0.000822,59726.0,59725.0,1.11087628]
[1724223468039,0.000822,59726.0,59725.0,1.12487628]
[1724223468305,0.000822,59726.0,59725.0,1.21097326]
[1724223468648,0.00039588,59726.0,59725.0,1.19697326]
[1724223468897,0.00039588,59726.0,59725.0,1.22497326]
[1724223470316,0.00039588,59726.0,59725.0,1.12487628]
[1724223472335,0.00039588,59726.0,59725.0,1.19993348]
[1724223472536,0.16439886,59726.0,59725.0,0.66943348]
[1724223472751,0.16439886,59726.0,59725.0,0.22290567]
[1724223476344,0.16439886,59726.0,59725.0,0.02910567]
[1724223476983,0.18818047,59726.0,59725.0,0.02910567]
[1724223477200,0.16439886,59726.0,59725.0,0.02910567]
[1724223481757,0.16439886,59726.0,59725.0,0.42830567]
[1724223482647,0.16439886,59726.0,59725.0,0.62780567]
[1724223483508,0.16439886,59726.0,59725.0,0.67785312]
[1724223484504,0.16439886,59726.0,59725.0,0.67788202]
[1724223484880,0.16439886,59726.0,59725.0,0.62780567]
[1724223485203,0.16439886,59726.0,59725.0,0.7029202]
[1724223485430,0.00039588,59726.0,59725.0,0.7029202]
[1724223485637,0.00039588,59726.0,59725.0,1.09943995]
[1724223485842,0.00039588,59726.0,59725.0,0.99928724]
[1724223486488,0.00019944,59726.0,59725.0,0.99928724]
[1724223487308,0.00019944,59726.0,59725.0,1.12447813]
[1724223489895,0.00019944,59726.0,59725.0,1.12450536]
[1724223490309,0.00019944,59726.0,59725.0,0.99927755]
[1724223492994,0.00019944,59726.0,59725.0,1.16325633]
[1724223493203,0.00019944,59726.0,59725.0,0.99927755]
[1724223493825,0.00019944,59726.0,59725.0,0.98527755]
[1724223494039,0.00019944,59726.0,59725.0,1.02217526]
[1724223494244,0.00019944,59726.0,59725.0,1.03617526]
[1724223494665,0.00019944,59726.0,59725.0,1.00817526]
[1724223494869,1.52638063,59727.0,59725.0,1.28615404]
[1724223495087,1.52638063,59727.0,59726.0,1.38069638]
[1724223495297,1.52638063,59727.0,59726.0,1.23047106]
[1724223495506,1.52638063,59727.0,59726.0,1.75053021]
[1724223495713,1.52638063,59727.0,59726.0,1.8071715]
[1724223496339,1.52638063,59727.0,59726.0,1.28710809]
[1724223496609,1.52638063,59727.0,59726.0,1.2304668]
[1724223497834,1.52638063,59727.0,59726.0,1.2444668]
[1724223498043,1.52638063,59727.0,59726.0,1.2584668]
[1724223498681,1.52638063,59727.0,59726.0,1.2594668]
[1724223499106,1.52638063,59727.0,59726.0,1.77952595]
[1724223499284,1.52638063,59727.0,59726.0,1.94350473]
[1724223500154,1.52638063,59727.0,59726.0,2.26324856]
[1724223500155,0.89198063,59727.0,59726.0,2.26324856]
[1724223500367,0.23476056,59727.0,59726.0,2.62849502]
[1724223500579,2.23414041,59728.0,59727.0,0.17256171]
[1724223500810,2.23414041,59728.0,59727.0,3.26054202]
[1724223501009,2.2231943,59728.0,59727.0,3.32055107]
[1724223501220,2.2231943,59728.0,59727.0,4.32671267]
[1724223501221,1.8065943,59728.0,59727.0,4.32671267]
[1724223501424,1.8065943,59728.0,59727.0,4.64301122]
[1724223501425,1.34973895,59728.0,59727.0,4.64301122]
[1724223501865,1.34973895,59728.0,59727.0,4.42659322]
[1724223502073,1.34973895,59728.0,59727.0,4.44059322]
[1724223502490,1.34973895,59728.0,59727.0,4.42659322]
[1724223503109,1.34973895,59728.0,59727.0,4.32597472]
[1724223503332,1.34973895,59728.0,59727.0,2.89509687]
[1724223503525,1.34973895,59728.0,59727.0,4.19940419]
[1724223503725,1.34973895,59728.0,59727.0,4.73319944]
[1724223504276,1.34973895,59728.0,59727.0,4.89674021]
[1724223504478,0.71491627,59728.0,59727.0,4.21340419]
[1724223504938,0.71491627,59728.0,59727.0,4.22740419]
[1724223505552,0.71491627,59728.0,59727.0,4.15624419]
[1724223506602,0.71491627,59728.0,59727.0,4.14073219]
[1724223507024,0.71491627,59728.0,59727.0,4.05415201]
[1724223507313,0.71491627,59728.0,59727.0,4.12672995]
[1724223507534,0.71491627,59728.0,59727.0,4.15472995]
[1724223507721,0.71491627,59728.0,59727.0,3.79721095]
[1724223507961,0.71491627,59728.0,59727.0,3.78321095]
[1724223508344,0.71491627,59728.0,59727.0,3.79721095]
[1724223509295,0.71573827,59728.0,59727.0,3.79721095]
[1724223509901,0.71573827,59728.0,59727.0,3.78321095]
[1724223510102,0.71573827,59728.0,59727.0,3.76921095]
[1724223510296,0.71573827,59728.0,59727.0,3.78321095]
[1724223510524,0.71573827,59728.0,59727.0,3.79721095]
[1724223510729,0.71573827,59728.0,59727.0,5.88891132]
[1724223510925,0.71573827,59728.0,59727.0,5.87491132]
[1724223511136,0.71573827,59728.0,59727.0,5.76033338]
[1724223511370,0.71573827,59728.0,59727.0,5.87491103]
[1724223511613,0.71573827,59728.0,59727.0,5.88891103]
[1724223512019,0.71573827,59728.0,59727.0,5.95597603]
[1724223514638,0.71573827,59728.0,59727.0,6.47575823]
[1724223516186,0.71573827,59728.0,59727.0,7.97479623]
[1724223517290,0.71573827,59728.0,59727.0,7.09916423]
[1724223519508,0.71573827,59728.0,59727.0,7.09916437]
[1724223520167,0.71573827,59728.0,59727.0,6.49220137]
[1724223520789,0.71573827,59728.0,59727.0,6.49220126]
[1724223522395,0.71573827,59728.0,59727.0,6.60870126]
[1724223522890,0.71573827,59728.0,59727.0,6.49220126]
[1724223523098,0.71573827,59728.0,59727.0,6.32659526]
[1724223524891,0.71573827,59728.0,59727.0,5.74896826]
[1724223525118,0.71573827,59728.0,59727.0,5.39111226]
[1724223525493,0.71573827,59728.0,59727.0,5.32404726]
[1724223526909,0.71573827,59728.0,59727.0,5.32409197]
[1724223527294,0.71573827,59728.0,59727.0,5.34709197]
[1724223527507,0.71573827,59728.0,59727.0,5.68194797]
[1724223527716,0.71573827,59728.0,59727.0,5.58137029]
[1724223528056,0.71573827,59728.0,59727.0,5.68195405]
[1724223529397,0.71573827,59728.0,59727.0,6.43252905]
[1724223530023,0.71573827,59728.0,59727.0,6.31027105]
[1724223530251,0.71573827,59728.0,59727.0,6.53573305]
[1724223531058,0.08133827,59728.0,59727.0,6.53573305]
[1724223531291,0.08133827,59728.0,59727.0,6.04591933]
[1724223531493,0.08133827,59728.0,59727.0,5.67462382]
[1724223531699,0.08133827,59728.0,59727.0,6.7148826]
[1724223532105,0.08133827,59728.0,59727.0,6.70087377]
[1724223532315,0.08133827,59728.0,59727.0,6.55165925]
[1724223532773,0.08133827,59728.0,59727.0,6.56565925]
[1724223533170,0.08133827,59728.0,59727.0,7.26565925]
[1724223533628,1.9989,59730.0,59729.0,1.17337471]
[1724223533836,1.9989,59730.0,59729.0,2.26672357]
[1724223534085,1.4458,59730.0,59729.0,4.36940857]
[1724223534733,1.4458,59730.0,59729.0,3.43729957]
[1724223534941,1.4458,59730.0,59729.0,3.38516157]
[1724223535143,1.4458,59730.0,59729.0,3.22132957]
[1724223536193,1.4458,59730.0,59729.0,3.23532957]
[1724223536603,1.4458,59730.0,59729.0,3.35182957]
[1724223537259,1.4458,59730.0,59729.0,3.28245057]
[1724223537471,1.4458,59730.0,59729.0,2.51777857]
[1724223537888,1.4458,59730.0,59729.0,2.46322911]
[1724223538515,1.4458,59730.0,59729.0,2.52692657]
[1724223539357,1.4458,59730.0,59729.0,2.67617742]
[1724223540384,1.4458,59730.0,59729.0,2.52692888]
[1724223540815,1.4458,59730.0,59729.0,2.19242945]
[1724223541018,1.4458,59730.0,59729.0,2.12873053]
[1724223541245,1.4458,59730.0,59729.0,2.19242945]
[1724223541449,1.4453778,59730.0,59729.0,2.19242945]
[1724223542124,2.0256778,59730.0,59729.0,0.83614984]
[1724223542779,2.0256778,59730.0,59729.0,0.79927152]
[1724223542988,2.0256778,59730.0,59729.0,0.82216112]
[1724223543204,2.0256778,59730.0,59729.0,0.80816112]
[1724223543414,2.0256778,59730.0,59729.0,0.82216112]
[1724223543832,2.0256778,59730.0,59729.0,0.83616112]
[1724223544055,2.0256778,59730.0,59729.0,1.0861641]
[1724223544275,2.0256778,59730.0,59729.0,1.11026267]
[1724223544519,2.0256778,59730.0,59729.0,1.12326267]
[1724223544742,2.0256778,59730.0,59729.0,1.27321243]
[1724223545214,2.0256778,59730.0,59729.0,1.25921243]
[1724223545633,2.0256778,59730.0,59729.0,1.10926267]
[1724223546260,2.0256778,59730.0,59729.0,1.25917417]
[1724223546468,2.0256778,59730.0,59729.0,1.26919443]
[1724223546679,2.0256778,59730.0,59729.0,1.24630483]
[1724223546680,2.0264998,59730.0,59729.0,1.24630483]
[1724223546891,2.0264998,59730.0,59729.0,1.28319248]
[1724223547327,2.0264998,59730.0,59729.0,1.11928098]
[1724223547538,2.0264998,59730.0,59729.0,1.13328098]
[1724223547950,2.0264998,59730.0,59729.0,1.13428098]
[1724223548162,2.0264998,59730.0,59729.0,1.13328098]
[1724223550432,2.0264998,59730.0,59729.0,1.09639333]
[1724223550660,2.0264998,59730.0,59729.0,1.13328131]
[1724223550872,2.0264998,59730.0,59729.0,0.89937009]
[1724223557836,2.0264998,59730.0,59729.0,1.02416912]
[1724223559603,2.0264998,59730.0,59729.0,1.02507332]
[1724223560615,2.0264998,59730.0,59729.0,1.1890763]
[1724223560930,2.0264998,59730.0,59729.0,0.90027429]
[1724223561131,2.0264998,59730.0,59729.0,1.02504371]
[1724223563369,2.0264998,59730.0,59729.0,1.0250545]
[1724223564205,2.0264998,59730.0,59729.0,1.06429491]
[1724223564606,2.0264998,59730.0,59729.0,1.06529491]
[1724223564809,2.0264998,59730.0,59729.0,1.06429491]
[1724223566206,2.0264998,59730.0,59729.0,1.06529491]
[1724223566410,2.0264998,59730.0,59729.0,1.10218473]
[1724223566535,2.0264998,59730.0,59729.0,1.06529491]
[1724223566757,2.0264998,59730.0,59729.0,1.10218473]
[1724223566978,2.0264998,59730.0,59729.0,1.06529491]
[1724223567181,2.0264998,59730.0,59729.0,1.10218473]
[1724223567596,2.0264998,59730.0,59729.0,1.10118473]
[1724223568005,2.0264998,59730.0,59729.0,0.729797]
[1724223568203,2.0264998,59730.0,59729.0,1.10217392]
[1724223568896,2.0264998,59730.0,59729.0,1.10117392]
[1724223571183,2.0264998,59730.0,59729.0,1.0642841]
[1724223571422,2.0264998,59730.0,59729.0,1.10117294]
[1724223573101,2.0264998,59730.0,59729.0,1.10117272]
[1724223574221,2.0264998,59730.0,59729.0,1.10217272]
[1724223575649,2.0264998,59730.0,59729.0,1.10217248]
[1724223576799,2.0264998,59730.0,59729.0,1.10117248]
[1724223577889,2.0264998,59730.0,59729.0,1.10117118]
[1724223580126,2.0264998,59730.0,59729.0,1.10117117]
[1724223580540,2.0264998,59730.0,59729.0,1.10217117]
[1724223581102,2.0264998,59730.0,59729.0,1.25191286]
[1724223581305,2.0264998,59730.0,59729.0,1.10217117]
[1724223582911,2.0264998,59730.0,59729.0,1.12517117]
[1724223583886,2.0264998,59730.0,59729.0,1.12417117]
[1724223584098,2.0264998,59730.0,59729.0,1.10117117]
[1724223584657,2.0264998,59730.0,59729.0,1.06428258]
[1724223584861,2.0264998,59730.0,59729.0,1.10117026]
[1724223585272,2.0264998,59730.0,59729.0,1.62109582]
[1724223585681,2.0264998,59730.0,59729.0,1.10117026]
[1724223585866,2.0264998,59730.0,59729.0,1.62109582]
[1724223586094,2.0264998,59730.0,59729.0,1.10117026]
[1724223586317,2.0264998,59730.0,59729.0,1.62109582]
[1724223586952,2.0264998,59730.0,59729.0,1.45709284]
[1724223587131,2.0264998,59730.0,59729.0,0.93716728]
[1724223587344,2.0264998,59730.0,59729.0,1.45709284]
[1724223589490,2.0264998,59730.0,59729.0,1.45709437]
[1724223592448,2.0264998,59730.0,59729.0,1.45710831]
[1724223592804,1.8387998,59730.0,59729.0,1.62211129]
[1724223593031,1.8387998,59730.0,59729.0,1.58522208]
[1724223593333,1.8387998,59730.0,59729.0,1.84395277]
[1724223593669,1.8387998,59730.0,59729.0,1.62210981]
[1724223593889,1.8387998,59730.0,59729.0,1.64510981]
[1724223595673,1.4461998,59730.0,59729.0,1.64510981]
[1724223595845,1.4461998,59730.0,59729.0,1.64410981]
[1724223596218,1.4461998,59730.0,59729.0,1.64510981]
[1724223596988,1.4461998,59730.0,59729.0,1.60822208]
[1724223597314,1.4461998,59730.0,59729.0,1.64510819]
[1724223597452,1.8246983,59730.0,59729.0,1.86588857]
[1724223597650,2.0227983,59730.0,59729.0,1.86588857]
[1724223597978,2.0227983,59730.0,59729.0,1.64410819]
[1724223598390,2.0227983,59730.0,59729.0,1.64510819]
[1724223600552,1.8246983,59730.0,59729.0,1.64510819]
[1724223600767,1.8246983,59730.0,59729.0,1.60822208]
[1724223600965,1.8246983,59730.0,59729.0,1.49552551]
[1724223601189,1.8246983,59730.0,59729.0,1.64503613]
[1724223601382,1.8246983,59730.0,59729.0,1.8670002]
[1724223601587,1.8246983,59730.0,59729.0,1.8660002]
[1724223602137,1.8246983,59730.0,59729.0,1.8670002]
[1724223602346,1.4459983,59730.0,59729.0,1.64503613]
[1724223602594,1.4459983,59730.0,59729.0,1.63103613]
[1724223602800,1.4459983,59730.0,59729.0,1.61703613]
[1724223603002,1.4459983,59730.0,59729.0,1.63103613]
[1724223603206,1.4459983,59730.0,59729.0,1.64503613]
[1724223603411,1.4459983,59730.0,59729.0,1.63103613]
[1724223603612,1.4459983,59730.0,59729.0,1.61703613]
[1724223604031,1.4459983,59730.0,59729.0,1.78445813]
[1724223604267,1.4459983,59730.0,59729.0,2.12562084]
[1724223604476,1.4459983,59730.0,59729.0,2.96348271]
[1724223604861,1.4459983,59730.0,59729.0,2.97748271]
[1724223605576,1.4459983,59730.0,59729.0,3.34232771]
[1724223605784,1.4459983,59730.0,59729.0,3.35452062]
[1724223606014,1.4459983,59730.0,59729.0,3.36852062]
[1724223606216,1.4459983,59730.0,59729.0,3.38252062]
[1724223606419,1.4459983,59730.0,59729.0,3.35452062]
[1724223606628,1.4459983,59730.0,59729.0,2.93995671]
[1724223606827,1.4459983,59730.0,59729.0,2.88641871]
[1724223607906,1.4459983,59730.0,59729.0,2.90041871]
[1724223608109,1.4459983,59730.0,59729.0,3.23526371]
[1724223608316,1.4459983,59730.0,59729.0,3.22126371]
[1724223608528,1.4459983,59730.0,59729.0,3.23526371]
[1724223608731,1.4459983,59730.0,59729.0,3.22126371]
[1724223608950,1.4459983,59730.0,59729.0,3.23526371]
[1724223609555,1.4459983,59730.0,59729.0,3.22126371]
[1724223609788,1.4459983,59730.0,59729.0,3.20726371]
[1724223609990,1.4459983,59730.0,59729.0,3.22126371]
[1724223610223,1.4459983,59730.0,59729.0,3.51216371]
[1724223611457,1.4459983,59730.0,59729.0,4.21216371]
[1724223611664,1.4459983,59730.0,59729.0,4.54700871]
[1724223611893,1.38304878,59730.0,59729.0,4.56100871]
[1724223612102,1.38304878,59730.0,59729.0,4.5329797]
[1724223612317,1.38304878,59730.0,59729.0,4.44641102]
[1724223612525,1.38304878,59730.0,59729.0,4.5609782]
[1724223612968,1.38304878,59730.0,59729.0,4.5469782]
[1724223613179,1.38304878,59730.0,59729.0,8.68864937]
[1724223613395,1.07394398,59730.0,59729.0,9.1575822]
[1724223614240,1.07394398,59730.0,59729.0,9.1435822]
[1724223614460,1.07394398,59730.0,59729.0,9.14329591]
[1724223614675,1.07394398,59730.0,59729.0,9.05369591]
[1724223614884,1.07394398,59730.0,59729.0,8.97469591]
[1724223615458,1.07394398,59730.0,59729.0,8.96069591]
[1724223615810,1.07394398,59730.0,59729.0,7.47469591]
[1724223616038,1.07394398,59730.0,59729.0,7.47469468]
[1724223616258,0.94860952,59730.0,59729.0,7.46135568]
[1724223616465,0.94860952,59730.0,59729.0,7.30519468]
[1724223616733,0.94860952,59730.0,59729.0,7.04416368]
[1724223616879,0.94860952,59730.0,59729.0,6.98815768]
[1724223617956,0.94860952,59730.0,59729.0,6.9512835]
[1724223618143,0.94860952,59730.0,59729.0,6.88759173]
[1724223618544,0.91109952,59730.0,59729.0,6.98815749]
[1724223618838,0.83619952,59730.0,59729.0,6.88759173]
[1724223619066,0.80919952,59730.0,59729.0,6.88759173]
[1724223619276,0.79819952,59730.0,59729.0,7.1646218]
[1724223619443,0.73470452,59730.0,59729.0,7.5856218]
[1724223619828,0.73470452,59730.0,59729.0,7.4091218]
[1724223620029,0.73470452,59730.0,59729.0,4.1813758]
[1724223620223,0.73470452,59730.0,59729.0,3.63131039]
[1724223620427,0.73470452,59730.0,59729.0,3.63721039]
[1724223620622,0.73470452,59730.0,59729.0,3.64531039]
[1724223620828,0.73470452,59730.0,59729.0,3.63131039]
[1724223621033,0.73470452,59730.0,59729.0,3.96615539]
[1724223621234,0.73470452,59730.0,59729.0,3.98015539]
[1724223621484,0.73470452,59730.0,59729.0,3.96615539]
[1724223621906,0.73470452,59730.0,59729.0,3.98915539]
[1724223622105,0.73470452,59730.0,59729.0,3.28915539]
[1724223622314,0.73470452,59730.0,59729.0,3.30315539]
[1724223622724,0.73470452,59730.0,59729.0,3.28915539]
[1724223623807,0.73470452,59730.0,59729.0,3.29505539]
[1724223624024,0.73470452,59730.0,59729.0,3.30905539]
[1724223625255,0.73470452,59730.0,59729.0,4.00905539]
[1724223626095,0.73470452,59730.0,59729.0,4.00906213]
[1724223626340,0.73470452,59730.0,59729.0,4.34390713]
[1724223626558,1.380822,59732.0,59729.0,4.34390713]
[1724223626559,0.99935624,59732.0,59731.0,0.68606871]
[1724223626744,0.88393463,59732.0,59731.0,10.80158098]
[1724223626946,0.88393463,59732.0,59731.0,15.5532114]
[1724223627148,0.88393463,59732.0,59731.0,15.4141124]
[1724223627570,0.88393463,59732.0,59731.0,16.1686314]
[1724223628032,0.88393463,59732.0,59731.0,15.7002824]
[1724223628235,0.88393463,59732.0,59731.0,15.5237824]
[1724223628432,0.88393463,59732.0,59731.0,14.9429814]
[1724223628658,0.88393463,59732.0,59731.0,14.8063964]
[1724223629290,0.88393463,59732.0,59731.0,14.63985549]
[1724223629502,0.81014679,59732.0,59731.0,14.65385549]
[1724223629998,0.73849679,59732.0,59731.0,14.83035549]
[1724223630131,0.71335971,59732.0,59731.0,14.83035549]
[1724223630908,0.67636971,59732.0,59731.0,14.83035549]
[1724223631101,0.67636971,59732.0,59731.0,14.81635549]
[1724223631226,0.67636971,59732.0,59731.0,14.80235549]
[1724223631628,0.67636971,59732.0,59731.0,14.81635549]
[1724223631828,0.63966971,59732.0,59731.0,14.81635549]
[1724223632033,0.59525185,59732.0,59731.0,14.81635549]
[1724223632523,0.59525185,59732.0,59731.0,14.83035549]
[1724223632726,0.47523185,59732.0,59731.0,15.05087969]
[1724223632962,0.34594185,59732.0,59731.0,14.83035549]
[1724223633179,0.28184538,59732.0,59731.0,15.59879359]
[1724223633379,0.28266738,59732.0,59731.0,15.59879359]
[1724223633576,0.25466738,59732.0,59731.0,15.59879359]
[1724223634218,0.09136649,59732.0,59731.0,15.58479359]
[1724223634417,0.09136649,59732.0,59731.0,15.59879359]
[1724223634819,0.09136649,59732.0,59731.0,15.58479359]
[1724223635224,0.06790522,59732.0,59731.0,15.59880104]
[1724223635631,0.06790522,59732.0,59731.0,15.58480104]
[1724223636049,0.06790522,59732.0,59731.0,15.59880104]
[1724223636379,0.06790522,59732.0,59731.0,15.59880292]
[1724223636954,0.06790522,59732.0,59731.0,14.85644069]
[1724223637553,0.06790522,59732.0,59731.0,14.86814069]
[1724223637754,0.06790522,59732.0,59731.0,14.7499791]
[1724223637962,0.06790522,59732.0,59731.0,14.85053341]
[1724223638187,2.0926,59733.0,59731.0,14.85053341]
[1724223638188,2.0926,59733.0,59732.0,1.17331571]
[1724223638367,2.0926,59733.0,59732.0,7.07848903]
[1724223638543,2.0926,59733.0,59732.0,6.95856503]
[1724223638755,2.0926,59733.0,59732.0,7.87459103]
[1724223639169,2.0640976,59733.0,59732.0,7.87459103]
[1724223639550,2.0640976,59733.0,59732.0,7.88859103]
[1724223640034,2.0640976,59733.0,59732.0,6.51464603]
[1724223640249,2.0273786,59733.0,59732.0,6.54083339]
[1724223640504,2.0273786,59733.0,59732.0,6.51464603]
[1724223640505,1.89330721,59733.0,59732.0,6.51464603]
[1724223640711,1.86850721,59733.0,59732.0,6.52864603]
[1724223641130,1.83189721,59733.0,59732.0,6.52864603]
[1724223641509,1.83189721,59733.0,59732.0,6.59569603]
[1724223641731,1.80340632,59733.0,59732.0,6.59569603]
[1724223642164,1.80340632,59733.0,59732.0,6.42188325]
[1724223642387,2.39050632,59733.0,59732.0,6.27854403]
[1724223642609,2.39050632,59733.0,59732.0,6.23978303]
[1724223642839,2.28189632,59733.0,59732.0,6.23978303]
[1724223643079,1.69479632,59733.0,59732.0,6.23978303]
[1724223644362,1.69479632,59733.0,59732.0,7.00837733]
[1724223645921,1.69561832,59733.0,59732.0,8.50837733]
[1724223646093,1.69561832,59733.0,59732.0,8.40782302]
[1724223646306,1.69561832,59733.0,59732.0,8.50838147]
[1724223646723,1.69561832,59733.0,59732.0,5.85023847]
[1724223647000,2.03869805,59733.0,59732.0,7.85201647]
[1724223647201,2.02193705,59733.0,59732.0,7.85201647]
[1724223647409,1.99512209,59733.0,59732.0,8.27301647]
[1724223647871,1.99481429,59733.0,59732.0,8.27301647]
[1724223648782,2.18891429,59733.0,59732.0,5.61141547]
[1724223649023,2.18891429,59733.0,59732.0,2.91881017]
[1724223649492,2.18891429,59733.0,59732.0,3.25463817]
[1724223649944,2.18891429,59733.0,59732.0,3.14007972]
[1724223650148,2.18891429,59733.0,59732.0,3.1769555]
[1724223650347,2.18891429,59733.0,59732.0,3.28312098]
[1724223650552,2.18891429,59733.0,59732.0,3.38312098]
[1724223650783,2.18891429,59733.0,59732.0,3.42012098]
[1724223651201,2.18891429,59733.0,59732.0,3.40612098]
[1724223651407,2.18891429,59733.0,59732.0,3.45012098]
[1724223652055,2.18891429,59733.0,59732.0,3.43612098]
[1724223652256,2.18891429,59733.0,59732.0,3.77312098]
[1724223652465,2.18891429,59733.0,59732.0,3.40829298]
[1724223652887,2.18891429,59733.0,59732.0,3.57629378]
[1724223653092,2.18891429,59733.0,59732.0,3.60248283]
[1724223653512,2.18891429,59733.0,59732.0,3.93731083]
[1724223654167,2.18891429,59733.0,59732.0,4.02348283]
[1724223654656,2.18891429,59733.0,59732.0,4.35831083]
[1724223655774,2.18891429,59733.0,59732.0,4.38831083]
[1724223655984,2.18891429,59733.0,59732.0,3.30948283]
[1724223656352,2.18891429,59733.0,59732.0,3.64431083]
[1724223657002,2.18891429,59733.0,59732.0,4.44150417]
[1724223657141,1.5824788,59733.0,59732.0,8.34597853]
[1724223657342,1.5824788,59733.0,59732.0,9.44704353]
[1724223657776,1.5824788,59733.0,59732.0,9.40188017]
[1724223657978,1.5824788,59733.0,59732.0,8.38935522]
[1724223658175,1.5824788,59733.0,59732.0,8.68025522]
[1724223658435,1.5824788,59733.0,59732.0,9.71508322]
[1724223659925,1.5824788,59733.0,59732.0,8.21508322]
[1724223660368,1.40728098,59733.0,59732.0,7.24988908]
[1724223660586,1.40728098,59733.0,59732.0,8.74988908]
[1724223660800,1.40112098,59733.0,59732.0,8.74988908]
[1724223661020,1.40112098,59733.0,59732.0,8.74988195]
[1724223661236,1.40112098,59733.0,59732.0,9.07031959]
[1724223661622,1.40112098,59733.0,59732.0,9.17087768]
[1724223661823,1.39512098,59733.0,59732.0,9.17087768]
[1724223662052,1.39512098,59733.0,59732.0,8.47087768]
[1724223662481,1.35839098,59733.0,59732.0,8.47087768]
[1724223662671,1.35839098,59733.0,59732.0,8.64737768]
[1724223663826,1.34468098,59733.0,59732.0,8.64737768]
[1724223664438,1.21897098,59733.0,59732.0,8.64737768]
[1724223664667,1.21897098,59733.0,59732.0,8.64737744]
[1724223665251,1.21897098,59733.0,59732.0,9.34737532]
[1724223665659,1.62287098,59733.0,59732.0,8.18567532]
[1724223665812,0.8703149,59733.0,59732.0,8.23450332]
[1724223666016,0.8066563,59733.0,59732.0,10.39164143]
[1724223666582,0.7686563,59733.0,59732.0,10.50794143]
[1724223666925,0.56208095,59733.0,59732.0,10.47994143]
[1724223667117,0.56208095,59733.0,59732.0,10.49394143]
[1724223667330,0.56208095,59733.0,59732.0,9.95654728]
[1724223667528,0.56208095,59733.0,59732.0,9.38563281]
[1724223667730,0.56208095,59733.0,59732.0,9.21712696]
[1724223667930,0.55704095,59733.0,59732.0,7.64456911]
[1724223668327,0.55200095,59733.0,59732.0,7.64456911]
[1724223668500,0.53122095,59733.0,59732.0,8.78812736]
[1724223668706,0.53122095,59733.0,59732.0,8.77412736]
[1724223668991,0.33097095,59733.0,59732.0,8.77412736]
[1724223669189,0.30201393,59733.0,59732.0,10.13342262]
[1724223669389,0.30201393,59733.0,59732.0,10.31370798]
[1724223669771,0.30201393,59733.0,59732.0,10.83103486]
[1724223669996,0.30201393,59733.0,59732.0,10.61694951]
[1724223670379,0.13191393,59733.0,59732.0,12.51251722]
[1724223670576,0.13191393,59733.0,59732.0,11.34047287]
[1724223670803,0.13191393,59733.0,59732.0,12.58587287]
[1724223670997,0.11499388,59733.0,59732.0,12.58587287]
[1724223671200,0.11499388,59733.0,59732.0,14.87432871]
[1724223672786,0.11499388,59733.0,59732.0,14.87422829]
[1724223672918,0.11499388,59733.0,59732.0,14.87422225]
[1724223673115,2.40989588,59735.0,59734.0,1.34977671]
[1724223673322,2.37197588,59735.0,59734.0,3.52278425]
[1724223673675,2.37197588,59735.0,59734.0,9.2790482]
[1724223673879,2.37197588,59735.0,59734.0,9.96597077]
[1724223674715,2.37197588,59735.0,59734.0,9.81150172]
[1724223674918,2.37197588,59735.0,59734.0,9.97995364]
[1724223675119,2.37197588,59735.0,59734.0,9.99165364]
[1724223675356,2.37197588,59735.0,59734.0,9.83720172]
[1724223675827,2.75187588,59735.0,59734.0,9.83720172]
[1724223676262,2.75187588,59735.0,59734.0,9.82542288]
[1724223676683,2.71518588,59735.0,59734.0,9.82542288]
[1724223677063,2.33528588,59735.0,59734.0,9.82542288]
[1724223678044,2.20250588,59735.0,59734.0,9.82542288]
[1724223679011,2.20250588,59735.0,59734.0,9.45426708]
[1724223679243,2.20250588,59735.0,59734.0,9.99382702]
[1724223679430,2.20250588,59735.0,59734.0,9.99382831]
[1724223680201,2.20250588,59735.0,59734.0,11.02537995]
[1724223680405,2.20250588,59735.0,59734.0,10.85697969]
[1724223680820,2.20250588,59735.0,59734.0,12.11297969]
[1724223681023,2.20250588,59735.0,59734.0,12.11297956]
[1724223681177,2.20250588,59735.0,59734.0,12.12467956]
[1724223682384,2.20250588,59735.0,59734.0,12.11067956]
[1724223682740,2.06876588,59735.0,59734.0,12.61399452]
[1724223682931,2.03213588,59735.0,59734.0,12.45949656]
[1724223683232,2.03213588,59735.0,59734.0,12.43149656]
[1724223683391,2.02208145,59735.0,59734.0,12.44549656]
[1724223683644,2.02208145,59735.0,59734.0,12.46040076]
[1724223683852,2.02208145,59735.0,59734.0,11.56961752]
[1724223683989,2.02290345,59735.0,59734.0,11.94907799]
[1724223684190,2.61830345,59735.0,59734.0,9.41814735]
[1724223684516,2.61830345,59735.0,59734.0,9.23513035]
[1724223685363,2.61830345,59735.0,59734.0,9.13458352]
[1724223685538,2.61830345,59735.0,59734.0,9.23513039]
[1724223685984,2.61830345,59735.0,59734.0,5.54990539]
[1724223686232,2.61830345,59735.0,59734.0,4.36474539]
[1724223686477,2.61830345,59735.0,59734.0,3.46912939]
[1724223686742,2.61830345,59735.0,59734.0,4.42378239]
[1724223687737,2.61830345,59735.0,59734.0,4.52378239]
[1724223687980,2.61830345,59735.0,59734.0,4.53278239]
[1724223688155,2.61830345,59735.0,59734.0,4.51878239]
[1724223688358,2.61830345,59735.0,59734.0,4.53278239]
[1724223689142,2.61830345,59735.0,59734.0,4.53508239]
[1724223689756,2.61830345,59735.0,59734.0,4.21026752]
[1724223689898,2.61830345,59735.0,59734.0,4.31082918]
[1724223690261,2.61830345,59735.0,59734.0,3.62482918]
[1724223690604,2.61830345,59735.0,59734.0,3.74112918]
[1724223691449,2.61830345,59735.0,59734.0,4.57862918]
[1724223692910,2.61830345,59735.0,59734.0,4.60481723]
[1724223693341,2.61830345,59735.0,59734.0,3.76731723]
[1724223693565,2.61830345,59735.0,59734.0,4.50992757]
[1724223693769,2.61830345,59735.0,59734.0,3.61901071]
[1724223694595,2.61830345,59735.0,59734.0,3.55532173]
[1724223694804,2.61830345,59735.0,59734.0,4.31901091]
[1724223695616,2.61830345,59735.0,59734.0,4.69022561]